[Event "FIDE WCCC Open-08 2024"]
[Site "Montesilvano"]
[Date "2024.11.18"]
[Round "4.34"]
[White "Lee, David J"]
[Black "Dzelnik, Robert"]
[Result "0-1"]
[ECO "C29"]
[WhiteElo "1446"]
[BlackElo "1822"]
[Annotator "NA RC"]
[PlyCount "142"]
[EventDate "2024.11.18"]
[EventType "swiss"]
[EventCountry "ITA"]
[SourceTitle "playchess.com"]
[Source "ChessBase"]
[SourceQuality "1"]
[TimeControl "5400+30"]

1. e4 {[%emt 0:04:34]} e5 {[%emt 0:00:08]} 2. Nc3 {[%emt 0:01:26]} Nf6 {[%emt 0:00:07]} 3. f4 {[%emt 0:00:09]} d5 {[%emt 0:00:07]} 4. fxe5 {[%emt 0:00:06]} Nxe4 {[%emt 0:00:05]} 5. Qf3 {[%emt 0:00:08]} Nxc3 {[%emt 0:09:02]} 6. dxc3 {[%emt 0:00:38]} a6 {[%emt 0:08:11]} 7. Bf4 {[%emt 0:01:50]} Nc6 {[%emt 0:00:34]} 8. O-O-O {[%emt 0:00:21]} Be6 {[%emt 0:01:10]} 9. Bc4 {[%emt 0:00:38]} g5 10. Bxd5 {[%emt 0:00:30]} Bxd5 11. Rxd5 {[%emt 0:00:30]} Qe7 12. Bg3 {[%emt 0:00:30]} Bh6 13. Kb1 {[%emt 0:00:30]} O-O 14. h4 {[%emt 0:00:30]} Rad8 15. Rxd8 {[%emt 0:00:30]} Rxd8 16. Ne2 {[%emt 0:00:30]} gxh4 17. Qg4+ {[%emt 0:00:30]} Qg5 18. Qxh4 {[%emt 0:00:30]} Qxh4 19. Bxh4 {[%emt 0:00:30]} Rd2 20. Nd4 {[%emt 0:00:30]} Nxe5 21. Nf5 {[%emt 0:00:30]} Bf8 22. Bg5 {[%emt 0:00:30]} Rxg2 23. Nh6+ {[%emt 0:00:30]} Bxh6 24. Bxh6 {[%emt 0:00:30]} Ng4 25. Bc1 {[%emt 0:00:30]} Kg7 26. Bf4 {[%emt 0:00:30]} c6 27. a4 {[%emt 0:00:30]} Nf2 28. Be5+ {[%emt 0:00:30]} f6 29. Bxf6+ {[%emt 0:00:30]} Kg6 30. Rh4 {[%emt 0:00:30]} Rg1+ 31. Ka2 {[%emt 0:00:30]} Kxf6 32. Rxh7 {[%emt 0:00:30]} Rg7 33. Rxg7 {[%emt 0:00:30]} Kxg7 34. Kb3 {[%emt 0:00:30]} Nd1 35. c4 {[%emt 0:00:30]} c5 36. Ka3 {[%emt 0:00:30]} Ne3 37. Kb3 {[%emt 0:00:30]} Kf6 38. a5 {[%emt 0:00:30]} Ke5 39. c3 {[%emt 0:00:30]} Ke4 40. Ka4 {[%emt 0:00:30]} Nxc4 41. b4 {[%emt 0:00:30]} cxb4 42. cxb4 {[%emt 0:00:30]} Nd6 43. Kb3 {[%emt 0:00:30]} Kd4 44. Ka3 {[%emt 0:00:30]} Kc3 45. Ka4 {[%emt 0:00:30]} Kc4 46. Ka3 {[%emt 0:00:30]} Kb5 47. Kb3 {[%emt 0:00:30]} Nc4 48. Kc3 {[%emt 0:00:30]} Nxa5 49. bxa5 {[%emt 0:00:30]} Kxa5 50. Kb3 {[%emt 0:00:30]} b5 51. Ka3 {[%emt 0:00:30]} b4+ 52. Kb3 {[%emt 0:00:30]} Kb5 53. Kb2 {[%emt 0:00:30]} Kc4 54. Kc2 {[%emt 0:00:30]} b3+ 55. Kb2 {[%emt 0:00:30]} Kb4 56. Kb1 {[%emt 0:00:30]} Kc3 57. Kc1 {[%emt 0:00:30]} b2+ 58. Kb1 {[%emt 0:00:30]} a5 59. Ka2 {[%emt 0:00:30]} Kc2 60. Ka3 {[%emt 0:00:30]} b1=Q 61. Ka4 {[%emt 0:00:30]} Qb2 62. Kxa5 {[%emt 0:00:30]} Qb3 63. Ka6 {[%emt 0:00:30]} Qb4 64. Ka7 {[%emt 0:00:30]} Qb5 65. Ka8 {[%emt 0:00:30]} Kc3 66. Ka7 {[%emt 0:00:30]} Kc4 67. Ka8 {[%emt 0:00:30]} Kc5 68. Ka7 {[%emt 0:00:30]} Kc6 69. Ka8 {[%emt 0:00:30]} Kc7 70. Ka7 {[%emt 0:00:30]} Qb6+ 71. Ka8 {[%emt 0:00:30]} Qb8# 0-1

[Event "FIDE WCCC Open-08 2024"]
[Site "Montesilvano"]
[Date "2024.11.18"]
[Round "4.35"]
[White "Kuncoro, Harvey"]
[Black "Le, Khai"]
[Result "0-1"]
[ECO "B20"]
[WhiteElo "1432"]
[BlackElo "1808"]
[Annotator "NA RC"]
[PlyCount "86"]
[EventDate "2024.11.18"]
[EventType "swiss"]
[EventCountry "ITA"]
[SourceTitle "playchess.com"]
[Source "ChessBase"]
[SourceQuality "1"]
[TimeControl "5400+30"]

1. e4 {[%emt 0:00:05]} c5 {[%emt 0:02:56]} 2. a3 {[%emt 0:00:07]} Nc6 {[%emt 0:02:20]} 3. b4 {[%emt 0:00:42]} Nf6 {[%emt 0:01:47]} 4. b5 {[%emt 0:00:16]} Nb8 {[%emt 0:02:45]} 5. Nc3 {[%emt 0:04:26]} d6 {[%emt 1:23:12]} 6. f4 {[%emt 0:03:22]} g6 {[%emt 0:00:00]} 7. Nf3 {[%emt 0:00:26]} Bg4 {[%emt 0:00:00]} 8. Bb2 {[%emt 0:04:30]} Bg7 {[%emt 0:00:00]} 9. d3 {[%emt 0:02:00]} Nbd7 {[%emt 0:00:00]} 10. h3 {[%emt 0:02:11]} Bxf3 {[%emt 0:00:00]} 11. Qxf3 {[%emt 1:17:55]} Qa5 12. e5 {[%emt 0:00:00]} dxe5 {[%emt 0:00:00]} 13. fxe5 {[%emt 0:01:00]} Nxe5 {[%emt 0:00:00]} 14. Qe2 {[%emt 0:00:00]} Nh5 {[%emt 0:00:00]} 15. Kf2 {[%emt 0:00:00]} O-O {[%emt 0:00:00]} 16. Nd5 {[%emt 0:00:00]} f6 {[%emt 0:00:00]} 17. g4 {[%emt 0:00:00]} Qxb5 {[%emt 0:00:00]} 18. Bc3 {[%emt 0:00:00]} Qd7 {[%emt 0:00:00]} 19. gxh5 {[%emt 0:00:00]} Qxd5 {[%emt 0:00:00]} 20. Bg2 {[%emt 0:00:00]} Qd7 {[%emt 0:00:00]} 21. Rab1 {[%emt 0:00:00]} Rab8 {[%emt 0:00:00]} 22. Rhe1 {[%emt 0:00:00]} b6 {[%emt 0:00:00]} 23. hxg6 {[%emt 0:00:00]} Nxg6 {[%emt 0:00:00]} 24. Qe4 {[%emt 0:00:00]} Rfd8 {[%emt 0:00:00]} 25. Qc4+ {[%emt 0:00:00]} Kh8 {[%emt 0:00:00]} 26. Qf7 {[%emt 0:00:00]} Bh6 {[%emt 0:00:00]} 27. Rxe7 {[%emt 0:00:00]} Qxe7 {[%emt 0:00:00]} 28. Bxf6+ {[%emt 0:00:00]} Qxf6+ {[%emt 0:00:00]} 29. Qxf6+ {[%emt 0:00:00]} Bg7 {[%emt 0:00:00]} 30. Qg5 {[%emt 0:00:00]} Bd4+ {[%emt 0:00:00]} 31. Kf3 {[%emt 0:00:00]} Rf8+ {[%emt 0:00:00]} 32. Ke4 {[%emt 0:00:00]} Rbe8+ {[%emt 0:00:00]} 33. Kd5 {[%emt 0:00:00]} Re5+ {[%emt 0:14:00]} 34. Kc4 {[%emt 0:00:00]} Rxg5 {[%emt 0:00:00]} 35. Be4 {[%emt 0:00:00]} Rf2 {[%emt 0:00:00]} 36. c3 {[%emt 0:00:00]} Rc2 {[%emt 0:00:00]} 37. Rb3 {[%emt 0:00:00]} a6 {[%emt 0:00:00]} 38. a4 {[%emt 0:00:00]} Ne7 {[%emt 0:00:00]} 39. Bb7 {[%emt 0:00:00]} b5+ {[%emt 0:00:00]} 40. axb5 {[%emt 0:00:00]} axb5+ {[%emt 0:00:00]} 41. Kxb5 {[%emt 0:00:00]} Rxc3 {[%emt 0:00:00]} 42. Rb1 {[%emt 0:00:00]} c4+ {[%emt 0:00:00]} 43. Ka6 {[%emt 0:00:00]} Ra3# {[%emt 0:00:00]} 0-1

[Event "FIDE WCCC Open-08 2024"]
[Site "Montesilvano"]
[Date "2024.11.18"]
[Round "4.36"]
[White "Juzbasic, Marul"]
[Black "Solovev, Nikolai"]
[Result "1-0"]
[ECO "B27"]
[WhiteElo "1726"]
[BlackElo "1446"]
[Annotator "NA RC"]
[PlyCount "31"]
[EventDate "2024.11.18"]
[EventType "swiss"]
[EventCountry "ITA"]
[SourceTitle "playchess.com"]
[Source "ChessBase"]
[SourceQuality "1"]
[TimeControl "5400+30"]

1. e4 {[%emt 0:00:02]} c5 {[%emt 0:00:07]} 2. Nf3 {[%emt 0:00:24]} Nc6 {[%emt 0:00:10]} 3. Bc4 {[%emt 0:00:26]} g6 {[%emt 0:00:11]} 4. O-O {[%emt 0:01:11]} Bg7 {[%emt 0:00:26]} 5. c3 {[%emt 0:00:29]} d6 {[%emt 0:00:38]} 6. d4 {[%emt 0:02:16]} cxd4 {[%emt 0:00:10]} 7. Bb3 {[%emt 0:01:23]} dxc3 {[%emt 0:01:16]} 8. Nxc3 {[%emt 0:00:16]} Nf6 {[%emt 0:01:59]} 9. Re1 {[%emt 0:05:01]} O-O {[%emt 0:01:15]} 10. h3 {[%emt 0:02:29]} Bd7 {[%emt 0:01:00]} 11. Bg5 {[%emt 0:02:29]} Rc8 {[%emt 0:02:13]} 12. a3 {[%emt 0:02:22]} a6 {[%emt 0:06:41]} 13. Qd2 {[%emt 0:05:04]} Re8 {[%emt 0:01:02]} 14. Bh6 {[%emt 0:01:05]} Bh8 {[%emt 0:01:33]} 15. Ng5 {[%emt 0:04:29]} Qb6 {[%emt 0:06:16]} 16. Bxf7# {[%emt 0:01:14]} 1-0

[Event "FIDE WCCC Open-08 2024"]
[Site "Montesilvano"]
[Date "2024.11.18"]
[Round "4.37"]
[White "Ok, Miro"]
[Black "Shroff, Dhairya Amit"]
[Result "0-1"]
[ECO "C01"]
[WhiteElo "1656"]
[BlackElo "1444"]
[Annotator "NA RC"]
[PlyCount "104"]
[EventDate "2024.11.18"]
[EventType "swiss"]
[EventCountry "ITA"]
[SourceTitle "playchess.com"]
[Source "ChessBase"]
[SourceQuality "1"]
[TimeControl "5400+30"]

1. e4 {[%emt 0:01:47]} e6 {[%emt 0:00:28]} 2. d4 {[%emt 1:29:43]} d5 {[%emt 0:00:43]} 3. exd5 {[%emt 0:00:00]} exd5 {[%emt 0:01:10]} 4. Nf3 {[%emt 0:00:00]} c6 {[%emt 0:00:46]} 5. Bd3 {[%emt 0:00:00]} Bg4 {[%emt 0:02:37]} 6. O-O {[%emt 0:00:00]} Bd6 {[%emt 0:03:15]} 7. c3 {[%emt 0:00:00]} Ne7 {[%emt 0:03:18]} 8. Nbd2 {[%emt 0:00:00]} Qc7 {[%emt 0:01:44]} 9. h3 {[%emt 0:00:00]} Bh5 {[%emt 0:00:19]} 10. Qc2 {[%emt 0:00:00]} Bg6 {[%emt 0:02:57]} 11. Re1 {[%emt 0:00:00]} O-O {[%emt 0:01:04]} 12. Ne5 {[%emt 0:00:00]} Bxd3 {[%emt 0:04:02]} 13. Qxd3 {[%emt 0:00:00]} f6 {[%emt 0:02:08]} 14. Nef3 {[%emt 0:00:00]} Ng6 {[%emt 0:00:41]} 15. Nb3 {[%emt 0:00:00]} Nd7 {[%emt 0:03:09]} 16. Qf5 {[%emt 0:00:00]} Rae8 {[%emt 0:01:47]} 17. Bd2 {[%emt 0:00:00]} Nb6 {[%emt 0:06:24]} 18. Rxe8 {[%emt 0:00:00]} Rxe8 {[%emt 0:00:12]} 19. Re1 {[%emt 0:00:00]} Rxe1+ {[%emt 0:00:50]} 20. Bxe1 {[%emt 0:00:00]} Qe7 {[%emt 0:00:44]} 21. Qb1 {[%emt 0:00:00]} Qe6 {[%emt 0:03:23]} 22. Bd2 {[%emt 0:00:00]} Nc4 {[%emt 0:00:57]} 23. Qe1 {[%emt 0:00:00]} Qxe1+ {[%emt 0:03:39]} 24. Nxe1 {[%emt 0:00:00]} Nxb2 {[%emt 0:01:37]} 25. Na5 {[%emt 0:00:00]} Nc4 {[%emt 0:00:48]} 26. Nxb7 {[%emt 0:00:00]} Ba3 {[%emt 0:01:05]} 27. Nc2 {[%emt 0:00:00]} Be7 {[%emt 0:01:11]} 28. Bc1 {[%emt 0:00:00]} Kf7 {[%emt 0:01:11]} 29. Ne3 {[%emt 0:00:00]} Nxe3 {[%emt 0:07:35]} 30. fxe3 {[%emt 0:00:00]} Ke6 {[%emt 0:00:27]} 31. Na5 {[%emt 0:00:00]} Kd7 {[%emt 0:00:30]} 32. Kf2 {[%emt 0:00:00]} Kc7 {[%emt 0:00:53]} 33. Kf3 {[%emt 0:00:00]} Kb6 {[%emt 0:01:15]} 34. Nb3 {[%emt 0:00:00]} Nh4+ {[%emt 0:00:52]} 35. Kg4 {[%emt 0:00:00]} f5+ {[%emt 0:02:41]} 36. Kg3 {[%emt 0:00:00]} Kb5 {[%emt 0:01:49]} 37. Nc5 {[%emt 0:00:00]} Bxc5 {[%emt 0:03:58]} 38. dxc5 {[%emt 0:00:00]} Ng6 {[%emt 0:00:46]} 39. h4 {[%emt 0:00:00]} h5 {[%emt 0:00:47]} 40. e4 {[%emt 0:00:00]} dxe4 {[%emt 0:01:21]} 41. Be3 {[%emt 0:00:00]} Kc4 {[%emt 0:00:08]} 42. Bd4 {[%emt 0:00:00]} f4+ {[%emt 0:00:40]} 43. Kf2 {[%emt 0:00:00]} Nxh4 {[%emt 0:00:51]} 44. Bxg7 {[%emt 0:00:00]} Kd3 {[%emt 0:00:17]} 45. Bh6 {[%emt 0:00:25]} e3+ {[%emt 0:00:14]} 46. Kf1 {[%emt 0:08:36]} e2+ {[%emt 0:00:08]} 47. Kf2 {[%emt 0:01:40]} Kd2 {[%emt 0:00:39]} 48. Bxf4+ {[%emt 0:01:13]} Kd1 {[%emt 0:00:06]} 49. Kg1 {[%emt 0:02:18]} e1=Q+ {[%emt 0:00:13]} 50. Kh2 {[%emt 0:00:24]} Qf2 {[%emt 0:00:09]} 51. Kh3 {[%emt 0:00:41]} Qxg2+ {[%emt 0:00:20]} 52. Kxh4 {[%emt 0:00:14]} Qg4# {[%emt 0:00:02]} 0-1

[Event "FIDE WCCC Open-08 2024"]
[Site "Montesilvano"]
[Date "2024.11.18"]
[Round "4.40"]
[White "Wang, Yihan(Ah)"]
[Black "Smilga, Olivers"]
[Result "1-0"]
[ECO "B22"]
[WhiteElo "1630"]
[BlackElo "1439"]
[Annotator "NA RC"]
[PlyCount "89"]
[EventDate "2024.11.18"]
[EventType "swiss"]
[EventCountry "ITA"]
[SourceTitle "playchess.com"]
[Source "ChessBase"]
[SourceQuality "1"]
[TimeControl "5400+30"]

1. e4 {[%emt 0:00:07]} c5 {[%emt 0:00:05]} 2. c3 {[%emt 0:00:06]} Nf6 {[%emt 0:00:05]} 3. e5 {[%emt 0:00:06]} Nd5 {[%emt 0:00:05]} 4. d4 {[%emt 0:00:05]} cxd4 {[%emt 0:00:12]} 5. cxd4 {[%emt 0:00:13]} e6 {[%emt 0:00:35]} 6. Nf3 {[%emt 0:01:50]} b6 {[%emt 0:00:12]} 7. Bc4 {[%emt 0:04:36]} Ba6 {[%emt 0:00:29]} 8. Bxa6 {[%emt 0:08:20]} Nxa6 {[%emt 0:00:10]} 9. Bd2 {[%emt 0:07:42]} Be7 {[%emt 0:09:09]} 10. Nc3 {[%emt 0:09:55]} Nac7 {[%emt 0:10:21]} 11. O-O {[%emt 0:05:32]} O-O {[%emt 0:03:50]} 12. Qe2 {[%emt 0:03:08]} d6 {[%emt 0:09:37]} 13. Rfe1 {[%emt 0:03:00]} Nxc3 {[%emt 0:12:30]} 14. bxc3 {[%emt 0:01:05]} d5 {[%emt 0:00:29]} 15. Qd3 {[%emt 0:04:47]} b5 {[%emt 0:21:00]} 16. g3 {[%emt 0:05:32]} a6 {[%emt 0:01:43]} 17. h4 {[%emt 0:01:38]} h6 {[%emt 0:00:21]} 18. Kg2 {[%emt 0:05:30]} Rc8 {[%emt 0:08:31]} 19. Rh1 {[%emt 0:03:52]} Na8 {[%emt 0:05:11]} 20. Rh2 {[%emt 0:07:37]} Nb6 {[%emt 0:01:14]} 21. Rah1 {[%emt 0:03:06]} Nc4 {[%emt 0:00:08]} 22. Ng5 {[%emt 0:03:20]} g6 {[%emt 0:02:17]} 23. Nxe6 {[%emt 0:02:37]} fxe6 {[%emt 0:01:10]} 24. Qxg6+ {[%emt 0:03:21]} Kh8 {[%emt 0:00:08]} 25. Qxh6+ {[%emt 0:02:04]} Kg8 {[%emt 0:00:09]} 26. Qxe6+ {[%emt 0:01:38]} Rf7 {[%emt 0:01:07]} 27. Bf4 {[%emt 0:11:16]} Nxe5 {[%emt 0:07:42]} 28. Bxe5 {[%emt 0:00:46]} Rxc3 {[%emt 0:00:39]} 29. Qg6+ {[%emt 0:00:57]} Kf8 {[%emt 0:00:11]} 30. Qh6+ {[%emt 0:00:11]} Ke8 {[%emt 0:00:07]} 31. Bf4 {[%emt 0:00:51]} Rc2 {[%emt 0:00:46]} 32. Qh8+ {[%emt 0:00:45]} Rf8 {[%emt 0:01:58]} 33. Qh5+ {[%emt 0:00:10]} Rf7 {[%emt 0:00:16]} 34. Re1 {[%emt 0:00:50]} Qa5 {[%emt 0:01:07]} 35. Qe5 {[%emt 0:00:30]} Qd8 {[%emt 0:00:51]} 36. h5 {[%emt 0:00:18]} Qa5 {[%emt 0:02:47]} 37. Qb8+ {[%emt 0:00:49]} Kd7 {[%emt 0:00:21]} 38. Qb7+ {[%emt 0:00:18]} Ke8 {[%emt 0:00:17]} 39. Qa8+ {[%emt 0:00:11]} Kd7 {[%emt 0:00:13]} 40. Qxd5+ {[%emt 0:00:13]} Ke8 {[%emt 0:00:06]} 41. Rf1 {[%emt 0:00:54]} Qd8 {[%emt 0:01:43]} 42. Qe4 {[%emt 0:00:26]} Qa5 {[%emt 0:00:42]} 43. Qxc2 {[%emt 0:00:23]} Qd8 {[%emt 0:00:43]} 44. Qc6+ {[%emt 0:00:24]} Kf8 {[%emt 0:00:10]} 45. Bh6+ {[%emt 0:00:05]} 1-0

[Event "FIDE WCCC Open-08 2024"]
[Site "Montesilvano"]
[Date "2024.11.18"]
[Round "4.42"]
[White "Xin, Andrew M."]
[Black "Cronje, Frederick"]
[Result "1-0"]
[ECO "B07"]
[WhiteElo "1546"]
[BlackElo "1434"]
[Annotator "NA RC"]
[PlyCount "91"]
[EventDate "2024.11.18"]
[EventType "swiss"]
[EventCountry "ITA"]
[SourceTitle "playchess.com"]
[Source "ChessBase"]
[SourceQuality "1"]
[TimeControl "5400+30"]

1. d4 {[%emt 0:00:01]} Nf6 {[%emt 0:00:07]} 2. Nf3 {[%emt 0:00:05]} g6 {[%emt 0:00:18]} 3. Nbd2 {[%emt 0:00:05]} Bg7 {[%emt 0:00:21]} 4. e4 {[%emt 0:00:08]} d6 {[%emt 0:00:07]} 5. Bb5+ {[%emt 0:00:09]} Bd7 {[%emt 0:00:34]} 6. Bd3 {[%emt 1:33:02]} O-O {[%emt 0:00:31]} 7. b3 {[%emt 0:00:00]} Nc6 {[%emt 0:01:09]} 8. Bb2 {[%emt 0:00:00]} Bg4 {[%emt 0:00:58]} 9. O-O {[%emt 0:00:00]} d5 {[%emt 0:01:53]} 10. Re1 {[%emt 0:00:00]} dxe4 {[%emt 0:00:18]} 11. Nxe4 {[%emt 0:00:00]} Bxf3 {[%emt 0:01:26]} 12. Qxf3 {[%emt 0:00:00]} Nxd4 {[%emt 0:00:36]} 13. Bxd4 {[%emt 0:00:00]} Qxd4 {[%emt 0:01:55]} 14. Rad1 {[%emt 0:00:00]} Nxe4 {[%emt 0:01:13]} 15. Bxe4 {[%emt 0:00:00]} Qf6 {[%emt 0:08:22]} 16. Bxb7 {[%emt 0:00:00]} Qxf3 {[%emt 0:00:19]} 17. Bxf3 {[%emt 0:00:00]} Rad8 {[%emt 0:00:20]} 18. Rxe7 {[%emt 0:00:00]} Rxd1+ {[%emt 0:02:06]} 19. Bxd1 {[%emt 0:00:00]} Rd8 {[%emt 0:00:52]} 20. Bf3 {[%emt 0:00:00]} Kf8 {[%emt 0:02:28]} 21. Rxc7 {[%emt 0:00:00]} Re8 {[%emt 0:00:18]} 22. g3 {[%emt 0:00:00]} Bd4 {[%emt 0:00:57]} 23. Kf1 {[%emt 0:00:00]} Re5 {[%emt 0:02:46]} 24. Rc4 {[%emt 0:00:00]} Bb6 {[%emt 0:02:19]} 25. Rf4 {[%emt 0:00:00]} Re7 {[%emt 0:04:55]} 26. Re4 {[%emt 0:00:00]} Rd7 {[%emt 0:06:01]} 27. Ke2 {[%emt 0:00:00]} Ba5 {[%emt 0:00:21]} 28. b4 {[%emt 0:00:00]} Bb6 {[%emt 0:03:57]} 29. c4 {[%emt 0:00:00]} a5 {[%emt 0:01:05]} 30. c5 {[%emt 0:00:00]} Bc7 {[%emt 0:00:32]} 31. b5 {[%emt 0:00:00]} Rd5 {[%emt 0:09:24]} 32. Re8+ {[%emt 0:00:00]} Kxe8 {[%emt 0:10:04]} 33. Bxd5 {[%emt 0:00:00]} Ke7 {[%emt 0:08:19]} 34. Kd3 {[%emt 0:00:00]} f6 {[%emt 0:00:19]} 35. Kc4 {[%emt 0:00:00]} h6 {[%emt 0:22:20]} 36. b6 {[%emt 0:00:00]} Kd7 {[%emt 0:00:30]} 37. bxc7 {[%emt 0:00:00]} Kxc7 {[%emt 0:00:08]} 38. Kb5 {[%emt 0:00:00]} Kb8 {[%emt 0:00:06]} 39. Kc6 {[%emt 0:00:00]} Kc8 {[%emt 0:00:10]} 40. Be6+ {[%emt 0:00:00]} Kb8 {[%emt 0:00:11]} 41. Kd7 {[%emt 0:00:00]} Kb7 {[%emt 0:00:04]} 42. c6+ {[%emt 0:00:00]} Kb6 {[%emt 0:00:13]} 43. c7 {[%emt 0:00:00]} Ka7 {[%emt 0:00:32]} 44. c8=Q {[%emt 0:00:00]} f5 {[%emt 0:00:19]} 45. Kc6 {[%emt 0:00:00]} f4 {[%emt 0:00:10]} 46. Qb7# {[%emt 0:00:00]} 1-0

[Event "FIDE WCCC Open-08 2024"]
[Site "Montesilvano"]
[Date "2024.11.18"]
[Round "4.43"]
[White "Agar, Garig"]
[Black "Kakagiannis, Stylianos"]
[Result "1-0"]
[ECO "D63"]
[WhiteElo "1534"]
[BlackElo "1423"]
[Annotator "NA RC"]
[PlyCount "73"]
[EventDate "2024.11.18"]
[EventType "swiss"]
[EventCountry "ITA"]
[SourceTitle "playchess.com"]
[Source "ChessBase"]
[SourceQuality "1"]
[TimeControl "5400+30"]

1. d4 {[%emt 0:00:05]} d5 {[%emt 0:00:07]} 2. c4 {[%emt 0:00:34]} e6 {[%emt 0:00:14]} 3. Nc3 {[%emt 0:00:10]} Nf6 {[%emt 0:03:39]} 4. Bg5 {[%emt 0:00:17]} Be7 {[%emt 0:11:35]} 5. e3 {[%emt 0:00:18]} Nbd7 {[%emt 0:03:32]} 6. Nf3 {[%emt 0:00:37]} b6 {[%emt 0:04:24]} 7. Rc1 {[%emt 0:00:31]} Bb7 {[%emt 0:02:44]} 8. cxd5 {[%emt 0:00:13]} exd5 {[%emt 0:05:45]} 9. Be2 {[%emt 0:00:20]} O-O {[%emt 0:03:32]} 10. O-O {[%emt 0:00:21]} Re8 {[%emt 0:02:59]} 11. Nb5 {[%emt 0:02:45]} c6 {[%emt 0:06:19]} 12. Nc3 {[%emt 0:02:23]} Bd6 {[%emt 0:06:38]} 13. Bd3 {[%emt 0:01:42]} Qb8 {[%emt 0:01:41]} 14. h3 {[%emt 0:00:58]} h6 {[%emt 0:03:15]} 15. Bxf6 {[%emt 0:00:58]} Nxf6 {[%emt 0:00:10]} 16. Qc2 {[%emt 0:01:51]} c5 {[%emt 0:13:30]} 17. Nb5 {[%emt 0:00:12]} cxd4 {[%emt 0:04:11]} 18. Nxd6 {[%emt 0:00:25]} Qxd6 {[%emt 0:00:09]} 19. Nxd4 {[%emt 1:25:20]} a6 {[%emt 0:01:17]} 20. Qc7 {[%emt 0:00:00]} Qxc7 {[%emt 0:01:10]} 21. Rxc7 {[%emt 0:00:00]} Rab8 {[%emt 0:00:20]} 22. Nf5 {[%emt 0:00:00]} Re6 {[%emt 0:00:44]} 23. Rfc1 {[%emt 0:00:00]} Kf8 {[%emt 0:06:21]} 24. Kf1 {[%emt 0:00:00]} Ne8 {[%emt 0:01:27]} 25. R7c2 {[%emt 0:00:00]} Nd6 {[%emt 0:01:47]} 26. Nd4 {[%emt 0:00:00]} Ree8 {[%emt 0:02:34]} 27. Bf5 {[%emt 0:00:00]} Bc8 {[%emt 0:01:12]} 28. Bd3 {[%emt 0:00:00]} Bb7 {[%emt 0:00:08]} 29. Rc7 {[%emt 0:00:00]} Rec8 {[%emt 0:01:46]} 30. Bf5 {[%emt 0:00:00]} Nxf5 {[%emt 0:00:30]} 31. Nxf5 {[%emt 0:00:00]} Rd8 {[%emt 0:00:32]} 32. Nd4 {[%emt 0:00:00]} Rdc8 {[%emt 0:00:56]} 33. Ke2 {[%emt 0:00:00]} g6 {[%emt 0:00:42]} 34. Rxb7 {[%emt 0:07:30]} Rxb7 {[%emt 0:01:09]} 35. Rxc8+ {[%emt 0:00:00]} Ke7 {[%emt 0:00:15]} 36. Ra8 {[%emt 0:00:00]} Kf6 {[%emt 0:00:27]} 37. Rxa6 {[%emt 0:00:00]} 1-0

[Event "FIDE WCCC Open-08 2024"]
[Site "Montesilvano"]
[Date "2024.11.18"]
[Round "4.44"]
[White "Thomas, Robert K"]
[Black "Zhanabayev, Arystan"]
[Result "0-1"]
[ECO "B77"]
[WhiteElo "2166"]
[BlackElo "1524"]
[Annotator "RC"]
[PlyCount "82"]
[EventDate "2024.11.18"]
[EventType "swiss"]
[EventCountry "ITA"]
[SourceTitle "playchess.com"]
[Source "ChessBase"]
[SourceQuality "1"]
[TimeControl "5400+30"]

1. e4 {[%emt 0:00:01]} c5 {[%emt 0:00:05]} 2. Nf3 {[%emt 0:00:07]} Nc6 {[%emt 0:00:10]} 3. d4 {[%emt 0:00:05]} cxd4 {[%emt 0:00:04]} 4. Nxd4 {[%emt 0:00:06]} g6 {[%emt 0:00:04]} 5. Nc3 {[%emt 0:00:05]} Bg7 {[%emt 0:00:06]} 6. Be3 {[%emt 0:00:06]} Nf6 {[%emt 0:00:30]} 7. Bc4 {[%emt 0:00:08]} O-O {[%emt 0:00:20]} 8. Bb3 {[%emt 0:00:08]} d6 {[%emt 0:01:12]} 9. f3 {[%emt 0:00:21]} Bd7 {[%emt 0:01:23]} 10. Qd2 {[%emt 0:00:07]} Nxd4 {[%emt 0:05:32]} 11. Bxd4 {[%emt 0:00:34]} Ne8 {[%emt 0:07:02]} 12. O-O-O {[%emt 0:00:42]} a5 {[%emt 0:02:00]} 13. a3 {[%emt 0:00:19]} b5 {[%emt 0:00:49]} 14. Ne2 {[%emt 0:01:00]} a4 {[%emt 0:08:35]} 15. Ba2 {[%emt 0:00:59]} Qa5 {[%emt 0:00:41]} 16. Qxa5 {[%emt 0:04:42]} Rxa5 {[%emt 0:00:07]} 17. g4 {[%emt 0:01:26]} Bh6+ {[%emt 0:02:11]} 18. f4 {[%emt 0:04:49]} Bxg4 {[%emt 0:00:23]} 19. Rd2 {[%emt 0:02:49]} Bxe2 {[%emt 0:02:06]} 20. Rxe2 {[%emt 0:00:14]} Bxf4+ {[%emt 0:00:03]} 21. Be3 {[%emt 0:00:19]} Bxe3+ {[%emt 0:00:14]} 22. Rxe3 {[%emt 0:00:06]} Nf6 {[%emt 1:07:53]} 23. Rhe1 {[%emt 0:01:43]} Ng4 {[%emt 0:00:00]} 24. Rg3 {[%emt 0:03:52]} Ne5 {[%emt 0:00:00]} 25. Rc3 {[%emt 0:00:56]} Ra6 {[%emt 0:00:00]} 26. Rc7 {[%emt 0:02:21]} Rc6 {[%emt 0:00:00]} 27. Rxc6 {[%emt 0:01:06]} Nxc6 {[%emt 0:00:00]} 28. Re3 {[%emt 0:00:55]} Rc8 {[%emt 0:00:00]} 29. Kd2 {[%emt 0:03:35]} Kg7 {[%emt 0:00:00]} 30. c4 {[%emt 0:03:38]} b4 {[%emt 0:00:00]} 31. axb4 {[%emt 0:01:15]} Nxb4 {[%emt 0:00:00]} 32. Ra3 {[%emt 0:00:17]} Nxa2 {[%emt 0:00:00]} 33. Rxa4 {[%emt 0:02:17]} Kf6 {[%emt 0:00:00]} 34. b3 {[%emt 0:00:25]} Rb8 {[%emt 0:00:00]} 35. Rxa2 {[%emt 0:03:38]} Rxb3 {[%emt 0:00:00]} 36. Ra1 {[%emt 0:01:32]} Rb2+ {[%emt 0:00:00]} 37. Ke3 {[%emt 0:00:22]} Rxh2 {[%emt 0:00:00]} 38. Rf1+ {[%emt 0:00:18]} Ke6 {[%emt 0:00:00]} 39. Rg1 {[%emt 0:00:24]} Rh3+ {[%emt 0:00:00]} 40. Kd4 {[%emt 0:00:12]} Kd7 {[%emt 0:00:00]} 41. Rf1 {[%emt 0:00:12]} e5+ {[%emt 0:00:00]} 0-1